fUST/lending_fUST_20240708
["ID","MTS","AMOUNT","RATE_DAILY","PERIOD"]
[331462216,1720426245348,-154.87169365,0.00060904,120]
[331462217,1720426245358,-1200.0,0.000612,120]
[331462218,1720426245371,-999.0,0.00061211,120]
[331462219,1720426245383,-154.87169365,0.00061336,120]
[331462220,1720426245392,-2000.0,0.00061514,4]
[331462221,1720426245402,-2000.0,0.00061523,4]
[331462222,1720426245411,-999.0,0.00061622,120]
[331462223,1720426245421,-154.87169365,0.00061728,120]
[331462224,1720426245430,-156.8926884,0.00061733,120]
[331462225,1720426245439,-394.40818358,0.00061789,120]
[331462226,1720426245450,-303.361657,0.000618,120]
[331462227,1720426245460,-303.361657,0.000618,120]
[331462228,1720426245469,-3000.0,0.000618,120]
[331462229,1720426245478,-154.87169365,0.00061987,120]
[331462230,1720426245487,-1000.0,0.00062,120]
[331462231,1720426245497,-999.0,0.00062033,120]
[331462232,1720426245506,-154.87169365,0.00062103,120]
[331462233,1720426245515,-154.87169377,0.00062217,120]
[331462234,1720426245524,-999.0,0.00062444,120]
[331462235,1720426245533,-151.0,0.00062466,120]
[331462236,1720426245543,-999.0,0.00062855,120]
[331462237,1720426245551,-50000.0,0.00063,30]
[331462238,1720426245560,-267.854686,0.00063,120]
[331462239,1720426245569,-267.854686,0.00063,120]
[331462240,1720426245578,-303.361657,0.00063,120]
[331462241,1720426245587,-303.361657,0.00063,120]
[331462242,1720426245596,-9947.17432392,0.00063003,90]
[331462243,1720426245605,-500.0,0.00063013,120]
[331462244,1720426245614,-500.0,0.00063013,7]
[331462245,1720426245625,-500.0,0.00063013,120]
[331462246,1720426245634,-500.0,0.00063013,120]
[331462247,1720426245642,-2000.0,0.00063013,120]
[331462248,1720426245651,-500.0,0.00063013,120]
[331462249,1720426245660,-500.0,0.00063013,120]
[331462250,1720426245669,-500.0,0.00063013,120]
[331462251,1720426245679,-500.0,0.00063013,10]
[331462252,1720426245688,-500.0,0.00063013,120]
[331462253,1720426245698,-500.0,0.00063013,120]
[331462254,1720426245707,-500.0,0.00063013,120]
[331462255,1720426245717,-128.82984652,0.00063013,120]
[331462292,1720426332465,168.574649,0.00021096,2]
[331462294,1720426377241,2500.56674729,0.0002557,2]
[331462295,1720426377277,2488.13607173,0.0002557,2]
[331462296,1720426389895,2253.25605222,0.00021096,2]
[331462297,1720426403191,162.95005177,0.00021096,2]
[331462298,1720426406102,3945.08127556,0.00038792,30]
[331462299,1720426430849,3774.20145208,0.00021096,2]
[331462300,1720426502465,844.9641902,0.0002557,2]
[331462301,1720426526851,2021.11747626,0.00021096,2]
[331462303,1720426759943,742.21421592,0.0002557,2]
[331462306,1720426778229,293.1691109,0.0002557,2]
[331462307,1720426780861,276.57925528,0.0002557,2]
[331462319,1720426981221,166.620417,0.00021096,2]
[331462328,1720427056552,287.42129962,0.00021096,2]
[331462330,1720427070278,11689.37040702,0.00027184,2]
[331462331,1720427070303,25000.0,0.00027184,2]
[331462336,1720427120099,25000.0,0.00025869,2]
[331462337,1720427120129,25000.0,0.00025869,2]
[331462338,1720427120155,22663.32715904,0.00025869,2]
[331462375,1720427157179,-1359.56555161,0.00025869,2]
[331462382,1720427221210,300.0,0.000255,2]
[331462385,1720427229098,-369.38176865,0.00025501,2]
[331462386,1720427242084,-3750.66253162,0.00025501,2]
[331462387,1720427251182,-261.34483971,0.00025501,2]
[331462389,1720427281488,300.0,0.000255,2]
[331462390,1720427308066,287.42129962,0.000255,2]
[331462396,1720427333668,-998.74912297,0.00025501,2]
[331462397,1720427333704,-998.74912297,0.00025501,2]
[331462398,1720427333760,-449.19135452,0.00025501,2]
[331462422,1720427341070,182.0,0.000255,2]
[331462423,1720427347105,-46026.383,0.00025501,2]
[331462424,1720427348114,-12036.9550366,0.00025501,2]
[331462432,1720427359121,-1047.68291498,0.00025501,2]
[331462433,1720427359149,-3156.25030798,0.00025501,2]
[331462434,1720427359170,-516.30298788,0.00027397,2]
[331462435,1720427359189,-181.16512633,0.00029813,2]
[331462436,1720427359209,-250.0,0.00029893,2]
[331462437,1720427359229,-171.725486,0.00031688,2]
[331462438,1720427359327,-200.0,0.00031859,15]
[331462439,1720427359348,-167.6285255,0.00031981,2]
[331462440,1720427359368,-624.87701044,0.00032803,2]
[331462441,1720427359388,-620.24385052,0.00034443,2]
[331462442,1720427359408,-397.0,0.0003455,2]
[331462443,1720427359428,-2246.77791825,0.0003455,4]
[331462444,1720427367087,-386.17065208,0.00030909,2]
[331462445,1720427367107,-3461.18372568,0.0003455,4]
[331462448,1720427407616,1706.93816052,0.0003091,2]
[331462468,1720427432892,-46659.80683948,0.0003091,2]
[331462470,1720427432902,-386.17065208,0.0003091,2]
[331462472,1720427432912,-48366.745,0.0003091,2]
[331462474,1720427432921,-10000.0011,0.00034467,4]
[331462476,1720427432931,-9756.12692689,0.00034467,4]
[331462625,1720427438659,-243.87417311,0.00034467,4]
[331462626,1720427438670,-7394.33187009,0.00034472,2]
[331462627,1720427438680,-1383.22853959,0.00036351,4]
[331462628,1720427438689,-1202.09800209,0.00037587,4]
[331462629,1720427438699,-166.620417,0.00037652,2]
[331462630,1720427438709,-668.92964396,0.00037999,30]
[331462631,1720427438718,-1003.695541,0.000385,27]
[331462632,1720427438728,-348.58484553,0.000386,2]
[331462633,1720427438743,-525.6,0.000387,62]
[331462634,1720427438752,-284.22582068,0.00038792,3]
[331462635,1720427438763,-256.72904767,0.00039167,2]
[331462636,1720427438777,-155.06564544,0.00039177,4]
[331462637,1720427438787,-155.42805707,0.00039177,4]
[331462638,1720427438797,-198.4253475,0.00039393,4]
[331462639,1720427438807,-154.55950541,0.00039393,4]
[331462640,1720427438818,-375.49562509,0.00039393,4]
[331462641,1720427438828,-155.58300829,0.00039393,4]
[331462642,1720427438838,-154.55950541,0.00039393,4]
[331462643,1720427438847,-209.44492491,0.00039393,4]
[331462645,1720427438858,-199.41991892,0.00039894,2]
[331462646,1720427438868,-15826.4193568,0.00039984,5]
[331462647,1720427438877,-156.56418552,0.00039994,4]
[331462648,1720427438887,-473.55680209,0.00041095,4]
[331462649,1720427438897,-179.1923836,0.00041096,2]
[331462650,1720427438906,-150.29238822,0.00042,2]
[331462651,1720427438916,-250.0,0.00043,30]
[331462652,1720427438925,-154.87169366,0.00043617,30]
[331462653,1720427438936,-250.0,0.00045,7]
[331462654,1720427438945,-154.87169366,0.00046579,30]
[331462655,1720427438956,-157.59667048,0.00046829,30]
[331462656,1720427439051,-157.59667048,0.00047461,30]
[331462657,1720427439062,-154.87169366,0.00048194,30]
[331462658,1720427439072,-38469.8,0.0004879,3]
[331462659,1720427439083,-1873.81024533,0.000488,120]
[331462660,1720427439093,-154.87169366,0.00048917,30]
[331462661,1720427439103,-154.54409492,0.0005,30]
[331462662,1720427439114,-533.81299865,0.0005,30]
[331462663,1720427439125,-154.87169366,0.00050451,60]
[331462664,1720427439135,-157.59667048,0.00050643,60]
[331462665,1720427439145,-157.59667048,0.00050895,60]
[331462666,1720427439155,-46163.76,0.0005198,3]
[331462667,1720427439166,-500.0,0.00051989,120]
[331462668,1720427439176,-459.35012759,0.00051989,120]
[331462669,1720427439186,-500.0,0.00051989,120]
[331462670,1720427439196,-504.64650764,0.00051989,120]
[331462671,1720427439206,-500.0,0.00051989,31]
[331462672,1720427439217,-500.0,0.00051989,120]
[331462673,1720427439227,-500.0,0.00051989,120]
[331462674,1720427439240,-500.0,0.00051989,120]
[331462675,1720427439251,-500.0,0.00051989,120]
[331462677,1720427439261,-500.0,0.00051989,120]
[331462679,1720427439272,-500.0,0.00051989,120]
[331462680,1720427439282,-261.68830985,0.00051989,120]
[331462681,1720427439292,-500.0,0.00051989,120]
[331462682,1720427439302,-500.0,0.00051989,120]
[331462683,1720427439312,-500.0,0.00051989,31]
[331462684,1720427439322,-280.52036119,0.00051989,120]
[331462685,1720427439332,-500.0,0.00051989,120]
[331462687,1720427439342,-500.0,0.00051989,120]
[331462688,1720427439351,-183.65759861,0.00051989,120]
[331462689,1720427439362,-500.0,0.00051989,120]
[331462690,1720427439372,-594.06542284,0.00051989,120]
[331462691,1720427439382,-518.72319697,0.00051989,120]
[331462692,1720427439392,-500.0,0.00051989,31]
[331462693,1720427439402,-303.07448977,0.00051989,120]
[331462694,1720427439413,-289.57359934,0.00051989,31]
[331462695,1720427439423,-500.0,0.00051989,120]
[331462696,1720427439434,-500.0,0.00051989,120]
[331462697,1720427439445,-500.0,0.00051989,120]
[331462698,1720427439455,-158.64226825,0.00051989,120]
[331462699,1720427439466,-500.0,0.00051989,120]
[331462700,1720427439476,-500.0,0.00051989,120]
[331462701,1720427439491,-500.0,0.00051989,120]
[331462702,1720427439502,-500.0,0.00051989,120]
[331462703,1720427439512,-500.0,0.00051989,120]
[331462704,1720427439522,-500.0,0.00051989,120]
[331462705,1720427439532,-500.0,0.00051989,120]
[331462706,1720427439543,-500.0,0.00051989,120]
[331462707,1720427439553,-500.0,0.00051989,120]
[331462708,1720427439563,-500.0,0.00051989,120]
[331462709,1720427439573,-500.0,0.00051989,120]
[331462710,1720427439584,-500.0,0.00051989,120]
[331462711,1720427439595,-500.0,0.00051989,120]
[331462712,1720427439605,-500.0,0.00051989,120]
[331462713,1720427439616,-500.0,0.00051989,120]
[331462714,1720427439626,-500.0,0.00051989,120]
[331462715,1720427439636,-25542.67,0.0005199,3]
[331462716,1720427439646,-10011.52,0.00052,30]
[331462717,1720427439655,-999.0,0.00052054,120]
[331462718,1720427439665,-500.0,0.00052055,120]
[331462719,1720427439674,-500.0,0.00052055,120]
[331462720,1720427439684,-500.0,0.00052055,120]
[331462721,1720427439693,-500.0,0.00052055,120]
[331462722,1720427439704,-500.0,0.00052055,120]
[331462723,1720427439714,-500.0,0.00052055,120]
[331462724,1720427439723,-500.0,0.00052055,120]
[331462725,1720427439736,-500.0,0.00052055,120]
[331462726,1720427439747,-500.0,0.00052055,120]
[331462727,1720427439758,-500.0,0.00052055,120]
[331462728,1720427439775,-500.0,0.00052055,120]
[331462729,1720427439794,-500.0,0.00052055,120]
[331462730,1720427439810,-583.41751972,0.00052055,120]
[331462731,1720427439824,-999.0,0.00052465,120]
[331462732,1720427439839,-167.4380985,0.000527,2]
[331462733,1720427439854,-2879.54544911,0.000528,120]
[331462734,1720427439870,-4501.75547339,0.000528,120]
[331462735,1720427439886,-813.2432863,0.000528,2]
[331462736,1720427439901,-999.0,0.00052876,120]
[331462737,1720427439919,-2142.72201999,0.000529,2]
[331462738,1720427439935,-151.37713241,0.00052901,10]
[331462739,1720427439952,-569.49,0.00053,7]
[331462740,1720427439966,-999.0,0.00053287,120]
[331462741,1720427439980,-999.0,0.00053698,120]
[331462742,1720427440002,-999.0,0.00054109,120]
[331462743,1720427440020,-166.620417,0.00054207,2]
[331462744,1720427440034,-154.87169366,0.00054373,60]
[331462745,1720427440046,-999.0,0.0005452,120]
[331462746,1720427440059,-2142.72201995,0.0005465,2]
[331462747,1720427440075,-337.82941501,0.00054795,120]
[331462748,1720427440089,-500.0,0.00054795,120]
[331462749,1720427440103,-500.0,0.00054795,120]
[331462750,1720427440117,-500.0,0.00054795,120]
[331462751,1720427440133,-500.0,0.00054795,120]
[331462753,1720427440150,-500.0,0.00054795,120]
[331462756,1720427440165,-500.0,0.00054795,120]
[331462758,1720427440178,-500.0,0.00054795,120]
[331462759,1720427440189,-500.0,0.00054795,120]
[331462760,1720427440201,-500.0,0.00054795,120]
[331462762,1720427440216,-500.0,0.00054795,120]
[331462763,1720427440230,-500.0,0.00054795,120]
[331462764,1720427440250,-500.0,0.00054795,120]
[331462765,1720427440261,-500.0,0.00054795,120]
[331462769,1720427440274,-500.0,0.00054795,120]
[331462770,1720427440286,-500.0,0.00054795,120]
[331462771,1720427440301,-500.0,0.00054795,120]
[331462772,1720427440313,-500.0,0.00054795,120]
[331462773,1720427440324,-500.0,0.00054795,120]
[331462774,1720427440337,-500.0,0.00054795,120]
[331462775,1720427440349,-500.0,0.00054795,120]
[331462777,1720427440362,-500.0,0.00054795,120]
[331462779,1720427440375,-500.0,0.00054795,120]
[331462781,1720427440387,-422.09457853,0.00054795,120]
[331462783,1720427440401,-500.0,0.00054795,120]
[331462785,1720427440414,-500.0,0.00054795,120]
[331462787,1720427440427,-500.0,0.00054795,120]
[331462788,1720427440441,-500.0,0.00054795,120]
[331462790,1720427440454,-500.0,0.00054795,120]
[331462792,1720427440467,-500.0,0.00054795,120]
[331462794,1720427440479,-999.0,0.00054931,120]
[331462796,1720427440494,-167.4380985,0.00054999,2]
[331462798,1720427440507,-999.0,0.00055342,120]
[331462800,1720427440520,-999.0,0.00055753,120]
[331462802,1720427440532,-157.59667051,0.00055896,120]
[331462804,1720427440545,-999.0,0.00056164,120]
[331462806,1720427440557,-2000.0,0.0005625,120]
[331462808,1720427440571,-2142.72201995,0.000564,2]
[331462810,1720427440583,-154.87169366,0.00056474,120]
[331462812,1720427440596,-280.8762462,0.000565,7]
[331462814,1720427440608,-15826.4193568,0.00056565,6]
[331462816,1720427440621,-999.0,0.00056575,120]
[331462818,1720427440633,-999.0,0.00056986,120]
[331462819,1720427440646,-1799.0,0.0005724,120]
[331462820,1720427440659,-167.4380985,0.00057297,2]
[331462821,1720427440672,-15826.4193568,0.00057377,7]
[331462822,1720427440684,-999.0,0.00057397,120]
[331462823,1720427440697,-31652.8387137,0.00057424,7]
[331462824,1720427440707,-76737.33642553,0.00057434,120]
[331462825,1720427440826,-15826.4193568,0.00057514,7]
[331462827,1720427440836,-79132.0967842,0.00057524,7]
[331462828,1720427440846,-5284.81372504,0.00057533,120]
[331462830,1720427440858,-9280.62372256,0.00057534,61]
[331462832,1720427440868,-513.5312704,0.00057534,120]
[331462833,1720427440878,-500.0,0.00057534,120]
[331462835,1720427440887,-500.0,0.00057534,120]
[331462837,1720427440897,-500.0,0.00057534,120]
[331462839,1720427440907,-500.0,0.00057534,120]
[331462841,1720427440917,-500.0,0.00057534,120]
[331462843,1720427440926,-500.0,0.00057534,120]
[331462844,1720427440935,-500.0,0.00057534,120]
[331462845,1720427440945,-500.0,0.00057534,120]
[331462846,1720427440955,-500.0,0.00057534,120]
[331462847,1720427440968,-500.0,0.00057534,120]
[331462848,1720427440978,-500.0,0.00057534,120]
[331462849,1720427440990,-500.0,0.00057534,120]
[331462851,1720427440999,-500.0,0.00057534,120]
[331462853,1720427441010,-500.0,0.00057534,120]
[331462854,1720427441019,-500.0,0.00057534,120]
[331462856,1720427441029,-500.0,0.00057534,120]
[331462858,1720427441039,-500.0,0.00057534,120]
[331462859,1720427441048,-169.44,0.00057534,120]
[331462860,1720427441058,-500.0,0.00057534,120]
[331462862,1720427441067,-516.51,0.00057534,120]
[331462863,1720427441076,-500.0,0.00057534,120]
[331462865,1720427441086,-500.0,0.00057534,120]
[331462867,1720427441097,-993.02,0.00057534,120]
[331462868,1720427441106,-2064.84,0.00057534,120]
[331462869,1720427441116,-1889.84,0.00057534,120]
[331462870,1720427441125,-500.0,0.00057534,120]
[331462871,1720427441135,-295.77394563,0.00057534,120]
[331462872,1720427441144,-500.0,0.00057534,120]
[331462873,1720427441154,-500.0,0.00057534,120]
[331462874,1720427441163,-500.0,0.00057534,120]
[331462875,1720427441173,-421.63705289,0.00057534,120]
[331462876,1720427441182,-500.0,0.00057534,120]
[331462877,1720427441192,-500.0,0.00057534,120]
[331462879,1720427441201,-500.0,0.00057534,120]
[331462881,1720427441211,-510.05,0.00057534,120]
[331462883,1720427441220,-500.0,0.00057534,120]
[331462884,1720427441230,-513.9321426,0.00057534,120]
[331462885,1720427441242,-500.0,0.00057534,120]
[331462886,1720427441252,-500.0,0.00057534,120]
[331462888,1720427441262,-509.06145503,0.00057534,120]
[331462889,1720427441272,-500.0,0.00057534,120]
[331462891,1720427441282,-509.14157313,0.00057534,120]
[331462892,1720427441292,-500.0,0.00057534,120]
[331462893,1720427441302,-507.83945506,0.00057534,120]
[331462894,1720427441313,-500.0,0.00057534,120]
[331462895,1720427441323,-216.52040023,0.00057534,120]
[331462896,1720427441333,-522.75456289,0.00057534,120]
[331462897,1720427441343,-500.0,0.00057534,120]
[331462898,1720427441354,-500.0,0.00057534,120]
[331462899,1720427441363,-500.0,0.00057534,120]
[331462900,1720427441374,-631.06499971,0.00057534,120]
[331462901,1720427441383,-500.0,0.00057534,120]
[331462902,1720427441393,-500.0,0.00057534,120]
[331462903,1720427441404,-500.0,0.00057534,120]
[331462904,1720427441414,-500.0,0.00057534,120]
[331462905,1720427441424,-500.0,0.00057534,120]
[331462906,1720427441434,-500.0,0.00057534,120]
[331462907,1720427441444,-500.0,0.00057534,120]
[331462908,1720427441454,-500.0,0.00057534,120]
[331462909,1720427441464,-500.0,0.00057534,120]
[331462910,1720427441473,-500.0,0.00057534,120]
[331462911,1720427441483,-500.0,0.00057534,120]
[331462912,1720427441494,-500.0,0.00057534,120]
[331462913,1720427441503,-500.0,0.00057534,120]
[331462914,1720427441512,-529.93098363,0.00057534,120]
[331462915,1720427441522,-500.0,0.00057534,120]
[331462916,1720427441532,-500.0,0.00057534,120]
[331462917,1720427441542,-500.0,0.00057534,120]
[331462918,1720427441552,-500.0,0.00057534,120]
[331462919,1720427441562,-500.0,0.00057534,120]
[331462920,1720427441572,-245.10647386,0.00057534,120]
[331462921,1720427441583,-500.0,0.00057534,120]
[331462922,1720427441592,-500.0,0.00057534,120]
[331462923,1720427441602,-517.20444976,0.00057534,120]
[331462924,1720427441612,-506.70309239,0.00057534,120]
[331462925,1720427441623,-500.0,0.00057534,120]
[331462926,1720427441633,-515.02065842,0.00057534,120]
[331462927,1720427441643,-210.0681247,0.00057534,120]
[331462928,1720427441653,-510.26779255,0.00057534,120]
[331462929,1720427441664,-500.0,0.00057534,120]
[331462930,1720427441674,-500.0,0.00057534,120]
[331462931,1720427441684,-513.58861862,0.00057534,120]
[331462932,1720427441694,-500.0,0.00057534,120]
[331462933,1720427441704,-500.0,0.00057534,120]
[331462934,1720427441714,-500.0,0.00057534,120]
[331462935,1720427441724,-500.0,0.00057534,120]
[331462936,1720427441736,-500.0,0.00057534,120]
[331462937,1720427441747,-500.0,0.00057534,120]
[331462938,1720427441757,-182.016995,0.00057534,120]
[331462939,1720427441768,-182.016995,0.00057534,120]
[331462940,1720427441779,-182.016995,0.00057534,120]
[331462941,1720427441791,-182.016995,0.00057534,120]
[331462942,1720427441802,-500.0,0.00057534,120]
[331462943,1720427441813,-500.0,0.00057534,120]
[331462944,1720427441823,-500.0,0.00057534,120]
[331462945,1720427441832,-513.33974616,0.00057534,120]
[331462946,1720427441842,-500.0,0.00057534,120]
[331462947,1720427441852,-977.88,0.00057534,120]
[331462948,1720427441864,-501.83399043,0.00057534,120]
[331462949,1720427441873,-500.0,0.00057534,120]
[331462950,1720427441884,-514.23803187,0.00057534,120]
[331462951,1720427441894,-500.0,0.00057534,120]
[331462952,1720427441903,-515.85036784,0.00057534,120]
[331462953,1720427441914,-534.13,0.00057534,120]
[331462954,1720427441924,-1337.52,0.00057534,120]
[331462955,1720427441935,-500.0,0.00057534,120]
[331462956,1720427441945,-329.834385,0.00057534,120]
[331462957,1720427441956,-1000.0,0.00057534,120]
[331462958,1720427441968,-329.834385,0.00057534,120]
[331462959,1720427441979,-641.43,0.00057534,120]
[331462960,1720427441991,-641.43,0.00057534,120]
[331462961,1720427442001,-641.43,0.00057534,120]
[331462962,1720427442011,-641.43,0.00057534,120]
[331462963,1720427442021,-641.43,0.00057534,120]
[331462964,1720427442032,-641.43,0.00057534,120]
[331462965,1720427442043,-641.43,0.00057534,120]
[331462966,1720427442054,-641.43,0.00057534,120]
[331462967,1720427442064,-641.43,0.00057534,120]
[331462968,1720427442075,-641.43,0.00057534,120]
[331462969,1720427442086,-641.43,0.00057534,120]
[331462970,1720427442096,-641.43,0.00057534,120]
[331462971,1720427442107,-641.43,0.00057534,120]
[331462972,1720427442117,-641.43,0.00057534,120]
[331462973,1720427442127,-641.43,0.00057534,120]
[331462974,1720427442138,-641.43,0.00057534,120]
[331462975,1720427442148,-641.43,0.00057534,120]
[331462976,1720427442159,-247.991788,0.00057534,120]
[331462977,1720427442168,-641.43,0.00057534,120]
[331462978,1720427442178,-641.43,0.00057534,120]
[331462979,1720427442188,-1414.04,0.00057534,120]
[331462980,1720427442198,-641.43,0.00057534,120]
[331462981,1720427442208,-641.43,0.00057534,120]
[331462982,1720427442218,-2369.83,0.00057534,120]
[331462983,1720427442228,-641.43,0.00057534,120]
[331462984,1720427442240,-641.43,0.00057534,120]
[331462985,1720427442250,-641.51818358,0.00057534,120]
[331462986,1720427442260,-247.991788,0.00057534,120]
[331462987,1720427442271,-925.08,0.00057534,120]
[331462988,1720427442282,-500.0,0.00057534,120]
[331462989,1720427442292,-173.44407233,0.00057534,120]
[331462990,1720427442302,-235.56290883,0.00057534,120]
[331462991,1720427442314,-500.0,0.00057534,120]
[331462992,1720427442324,-214.283749,0.00057534,120]
[331462993,1720427442335,-214.283749,0.00057534,120]
[331462994,1720427442345,-214.283749,0.00057534,120]
[331462995,1720427442356,-214.283749,0.00057534,120]
[331462996,1720427442366,-500.0,0.00057534,120]
[331462997,1720427442376,-500.0,0.00057534,120]
[331462998,1720427442385,-500.0,0.00057534,120]
[331462999,1720427442395,-500.0,0.00057534,7]
[331463000,1720427442405,-500.0,0.00057534,120]
[331463001,1720427442414,-500.0,0.00057534,120]
[331463002,1720427442424,-500.0,0.00057534,120]
[331463003,1720427442433,-500.0,0.00057534,120]
[331463004,1720427442443,-1182.78,0.00057534,120]
[331463005,1720427442452,-151.0,0.00057534,120]
[331463006,1720427442462,-186.265752,0.00057534,120]
[331463007,1720427442472,-2000.0,0.00057534,120]
[331463008,1720427442482,-823.55,0.00057534,120]
[331463009,1720427442494,-823.55,0.00057534,120]
[331463010,1720427442503,-151.0,0.00057534,120]
[331463011,1720427442512,-823.55,0.00057534,120]
[331463012,1720427442521,-823.55,0.00057534,120]
[331463013,1720427442530,-823.55,0.00057534,120]
[331463014,1720427442539,-823.55,0.00057534,120]
[331463015,1720427442549,-823.55,0.00057534,120]
[331463016,1720427442558,-823.55,0.00057534,120]
[331463017,1720427442567,-823.55,0.00057534,120]
[331463018,1720427442577,-823.55,0.00057534,120]
[331463019,1720427442586,-823.55,0.00057534,120]
[331463020,1720427442595,-823.55,0.00057534,120]
[331463021,1720427442605,-823.55,0.00057534,120]
[331463022,1720427442614,-823.55,0.00057534,120]
[331463023,1720427442624,-823.55,0.00057534,120]
[331463024,1720427442633,-823.55,0.00057534,120]
[331463025,1720427442642,-823.55,0.00057534,120]
[331463026,1720427442718,-823.55,0.00057534,120]
[331463027,1720427442727,-823.55,0.00057534,120]
[331463028,1720427442740,-823.55,0.00057534,120]
[331463029,1720427442750,-823.55,0.00057534,120]
[331463030,1720427442759,-823.55,0.00057534,120]
[331463031,1720427442771,-823.55,0.00057534,120]
[331463032,1720427442782,-823.63521076,0.00057534,120]
[331463033,1720427442792,-500.0,0.00057534,120]
[331463034,1720427442802,-151.0,0.00057534,120]
[331463035,1720427442812,-500.0,0.00057534,120]
[331463036,1720427442823,-1339.05,0.00057534,120]
[331463037,1720427442832,-13041.32,0.00057534,120]
[331463038,1720427442841,-238.77980863,0.00057534,120]
[331463039,1720427442850,-500.0,0.00057534,120]
[331463040,1720427442860,-3292.02,0.00057534,120]
[331463041,1720427442871,-500.0,0.00057534,120]
[331463042,1720427442880,-500.0,0.00057534,120]
[331463043,1720427442889,-500.0,0.00057534,120]
[331463044,1720427442898,-916.41,0.00057534,120]
[331463045,1720427442908,-226.02081852,0.00057534,120]
[331463046,1720427442917,-524.32,0.00057534,120]
[331463047,1720427442926,-500.0,0.00057534,120]
[331463048,1720427442935,-500.0,0.00057534,120]
[331463049,1720427442945,-500.0,0.00057534,120]
[331463050,1720427442954,-500.0,0.00057534,120]
[331463051,1720427442963,-500.0,0.00057534,120]
[331463052,1720427442972,-500.0,0.00057534,120]
[331463053,1720427442982,-500.0,0.00057534,120]
[331463054,1720427442997,-500.0,0.00057534,120]
[331463055,1720427443006,-500.0,0.00057534,120]
[331463056,1720427443014,-500.0,0.00057534,120]
[331463057,1720427443023,-1198.75,0.00057534,120]
[331463058,1720427443034,-500.0,0.00057534,10]
[331463059,1720427443044,-500.0,0.00057534,120]
[331463060,1720427443053,-1608.24,0.00057534,120]
[331463061,1720427443062,-1000.0,0.00057534,120]
[331463062,1720427443071,-500.0,0.00057534,120]
[331463063,1720427443080,-500.0,0.00057534,120]
[331463064,1720427443089,-500.0,0.00057534,120]
[331463065,1720427443098,-3248.42,0.00057534,120]
[331463066,1720427443106,-3248.42,0.00057534,120]
[331463067,1720427443115,-3248.42,0.00057534,120]
[331463068,1720427443124,-3248.42,0.00057534,120]
[331463069,1720427443133,-3248.42,0.00057534,120]
[331463070,1720427443143,-3248.42,0.00057534,120]
[331463071,1720427443151,-3248.42,0.00057534,120]
[331463072,1720427443160,-3248.42,0.00057534,120]
[331463074,1720427443169,-3248.42,0.00057534,120]
[331463076,1720427443178,-1072.59,0.00057534,120]
[331463077,1720427443188,-3248.42,0.00057534,120]
[331463079,1720427443197,-3248.42,0.00057534,120]
[331463081,1720427443206,-500.0,0.00057534,120]
[331463082,1720427443216,-3248.42,0.00057534,120]
[331463083,1720427443226,-3248.42,0.00057534,120]
[331463084,1720427443237,-3248.42,0.00057534,120]
[331463085,1720427443247,-3248.42,0.00057534,120]
[331463086,1720427443257,-3248.42,0.00057534,120]
[331463087,1720427443267,-3248.42,0.00057534,120]
[331463088,1720427443276,-3248.42,0.00057534,120]
[331463089,1720427443286,-3248.42,0.00057534,120]